bitfinex/quotes_SOLUSD_20260309
["timestamp","ask_amount","ask_price","bid_price","bid_amount"]
[1773025648502,4.43983934,83.2,83.157,0.68853128]
[1773025648703,42.06326314,83.208,83.157,0.68853128]
[1773025649028,4.43983934,83.18,83.135,0.68853128]
[1773025649205,4.43983934,83.17,83.135,0.68853128]
[1773025650500,12.02371075,83.169,83.135,0.68853128]
[1773025650807,12.02371075,83.169,83.126,0.68853128]
[1773025651107,4.43983934,83.16,83.126,0.68853128]
[1773025651298,4.43983934,83.15,83.112,0.68853128]
[1773025651796,4.43983934,83.14,83.106,12.03274978]
[1773025652588,12.02804941,83.139,83.106,12.03274978]
[1773025653402,12.02804941,83.139,83.104,0.68853128]
[1773025653606,30.06427802,83.156,83.111,0.68853128]
[1773025653987,11.9076677,83.15,83.111,0.68853128]
[1773025654797,11.9076677,83.15,83.113,0.68853128]
[1773025655000,11.9076677,83.16,83.113,0.68853128]
[1773025655188,11.9076677,83.18,83.117,0.68853128]
[1773025657010,11.9076677,83.17,83.12,0.68853128]
[1773025657798,11.9076677,83.18,83.12,0.68853128]
[1773025658807,11.9076677,83.17,83.12,0.68853128]
[1773025660018,11.9076677,83.17,83.122,0.68853128]
[1773025660408,12.02371075,83.169,83.122,0.68853128]
[1773025662322,12.02371075,83.169,83.046,19.50817059]
[1773025662323,11.9076677,83.2,83.133,0.68853128]
[1773025662697,11.9076677,83.19,83.133,0.68853128]
[1773025663122,11.9076677,83.18,83.133,0.68853128]
[1773025664913,11.9076677,83.17,83.135,0.68853128]
[1773025666625,11.9076677,83.19,83.135,0.68853128]
[1773025666823,11.9076677,83.2,83.136,0.68853128]
[1773025667016,11.9076677,83.2,83.139,0.68853128]
[1773025667017,12.01937523,83.199,83.139,0.68853128]
[1773025668230,12.01862248,83.205,83.141,0.68853128]
[1773025668725,11.9076677,83.2,83.141,0.68853128]
[1773025669430,12.01937523,83.199,83.146,0.97285442]
[1773025669623,12.01937523,83.199,83.147,0.68853128]
[1773025671233,11.9076677,83.21,83.149,0.28432314]
[1773025671434,11.9076677,83.21,83.15,0.68853128]
[1773025671728,11.9076677,83.2,83.15,0.68853128]
[1773025672518,11.9076677,83.21,83.15,0.68853128]
[1773025673530,11.9076677,83.21,83.145,3.69383402]
[1773025673531,11.9076677,83.2,83.152,0.68853128]
[1773025673732,90.11065588,83.231,83.154,0.68853128]
[1773025673733,4.44012185,83.19,83.154,0.68853128]
[1773025674033,4.44012185,83.2,83.154,0.68853128]
[1773025676333,4.44012185,83.2,83.145,3.69383402]
[1773025676334,4.44012185,83.21,83.157,0.68853128]
[1773025676541,12.01775676,83.211,83.157,0.68853128]
[1773025679137,4.44012185,83.21,83.159,0.68853128]
[1773025679334,4.44012185,83.2,83.159,0.68853128]
[1773025681638,4.44012185,83.21,83.161,0.68853128]
[1773025681835,12.01793075,83.209,83.161,0.68853128]
[1773025682245,60.06920268,83.238,83.164,0.68853128]
[1773025682246,12.01699893,83.216,83.164,0.68853128]
[1773025682731,30.0377537,83.229,83.164,0.68853128]
[1773025682732,12.01518719,83.228,83.165,0.68853128]
[1773025682926,12.01518719,83.228,83.168,0.68853128]
[1773025683126,42.05315518,83.228,83.168,0.68853128]
[1773025683640,42.05315518,83.228,83.17,0.68853128]
[1773025683834,60.05513425,83.257,83.171,0.68853128]
[1773025683835,12.01435506,83.234,83.171,0.68853128]
[1773025684140,4.44012185,83.23,83.171,0.68853128]
[1773025685238,4.44012185,83.22,83.171,0.68853128]
[1773025685627,12.01504283,83.229,83.173,0.68853128]
[1773025687128,12.01359939,83.239,83.176,0.68853128]
[1773025687331,12.01359939,83.239,83.177,0.68853128]
[1773025687627,12.01359939,83.239,83.175,3.69383402]
[1773025687628,30.03175228,83.246,83.184,0.97285442]
[1773025687844,30.03175228,83.246,83.185,0.68853128]
[1773025687845,4.43809636,83.23,83.185,0.68853128]
[1773025688525,0.28432314,83.245,83.185,0.68853128]
[1773025688725,4.43809636,83.22,83.185,0.68853128]
[1773025689143,4.43809636,83.22,83.087,19.50817059]
[1773025689144,4.43809636,83.22,83.177,12.71095394]
[1773025689341,4.43809636,83.22,83.178,0.68853128]
[1773025689646,4.43809636,83.23,83.18,0.68853128]
[1773025689829,12.01273349,83.245,83.183,0.68853128]
[1773025690147,12.01273349,83.245,83.184,0.68853128]
[1773025690945,4.43809636,83.24,83.184,0.68853128]
[1773025691942,4.43809636,83.22,83.187,0.68853128]
[1773025692943,4.43809636,83.23,83.187,0.68853128]
[1773025693853,42.05264991,83.229,83.189,0.68853128]
[1773025694146,4.43809636,83.22,83.189,0.68853128]
[1773025694939,42.05264991,83.229,83.189,0.68853128]
[1773025695932,42.05264991,83.229,83.191,0.68853128]
[1773025696645,12.01504283,83.229,83.191,0.68853128]
[1773025697346,12.01427577,83.235,83.191,0.68853128]
[1773025697551,12.0121563,83.249,83.191,0.68853128]
[1773025697934,12.0121563,83.249,83.194,0.68853128]
[1773025699934,34.4684306,83.25,83.196,0.28432314]
[1773025700137,12.01071355,83.259,83.199,0.08741309]
[1773025700345,60.03465479,83.286,83.198,3.69383402]
[1773025700346,0.55783314,83.289,83.207,3.69383402]
[1773025700532,12.00853756,83.275,83.212,0.65546194]
[1773025700732,12.0083283,83.276,83.217,0.65546194]
[1773025700933,0.55783314,83.279,83.22,0.65546194]
[1773025701157,0.55783314,83.279,83.214,0.14216157]
[1773025701158,0.5579859,83.303,83.231,5.48023763]
[1773025701350,0.5579859,83.303,83.241,0.65546194]
[1773025701351,12.00451369,83.302,83.241,0.65546194]
[1773025702159,0.55813599,83.299,83.247,0.65546194]
[1773025702454,0.28432314,83.332,83.246,0.28432314]
[1773025702455,0.55813599,83.318,83.252,0.65546194]
[1773025702659,0.55828523,83.319,83.253,0.65546194]
[1773025703334,4.99638159,83.31,83.253,0.65546194]
[1773025703530,0.55828523,83.309,83.253,0.65546194]
[1773025703957,0.55828523,83.309,83.242,102.11191465]
[1773025703958,12.00062403,83.329,83.27,0.65546194]
[1773025704254,12.00062403,83.329,83.273,0.65546194]
[1773025704255,0.55842471,83.328,83.273,0.65546194]
[1773025705755,42.00218411,83.329,83.273,0.65546194]
[1773025705756,0.55856935,83.319,83.273,0.65546194]
[1773025705953,12.00062403,83.329,83.273,0.65546194]
[1773025706262,12.00062403,83.329,83.264,3.69383402]
[1773025706263,0.55871035,83.335,83.276,0.65546194]
[1773025707355,0.5588481,83.319,83.276,0.65546194]
[1773025707560,0.28432314,83.352,83.274,42.02992529]
[1773025707561,0.5588481,83.355,83.279,4.82477569]
[1773025707867,47.44504776,83.46,83.274,42.02992529]
[1773025707868,0.65348291,83.419,83.297,0.65546194]
[1773025708154,0.65348291,83.419,83.274,186.13252634]
[1773025708155,0.65348291,83.417,83.322,0.65546194]
[1773025708460,7.40083141,83.458,83.339,0.65546194]
[1773025708639,0.66704932,83.456,83.344,0.28432314]
[1773025708972,7.37456021,83.513,83.414,0.65546194]
[1773025709441,7.37456021,83.513,83.425,0.65546194]
[1773025709442,11.86126194,83.49,83.425,0.65546194]
[1773025709637,7.37456021,83.513,83.432,0.65546194]
[1773025709949,7.37456021,83.513,83.393,15.50327691]
[1773025709950,11.86126194,83.51,83.443,0.65546194]
[1773025710143,7.37456021,83.513,83.445,0.65546194]
[1773025710344,11.97432704,83.512,83.449,0.65546194]
[1773025710540,11.97432704,83.512,83.445,0.65546194]
[1773025710760,0.65348291,83.499,83.446,0.65546194]
[1773025711337,7.37456021,83.513,83.444,11.98408513]
[1773025711338,7.37456021,83.513,83.452,0.65546194]
[1773025711557,7.37456021,83.513,83.445,0.28432314]
[1773025711558,0.65348291,83.543,83.467,4.82477569]
[1773025711858,0.65348291,83.543,83.458,3.69383402]
[1773025711859,0.65348291,83.541,83.484,0.65546194]
[1773025712040,0.65348291,83.517,83.454,0.28432314]
[1773025712242,11.97346679,83.518,83.45,41.94128219]
[1773025712243,0.65348291,83.509,83.455,0.65546194]
[1773025712551,41.90713378,83.518,83.446,0.65546194]
[1773025712552,0.65348291,83.499,83.446,0.65546194]
[1773025712758,0.65348291,83.537,83.451,0.65546194]
[1773025712956,7.32324503,83.554,83.471,0.76571379]
[1773025713154,29.90849919,83.589,83.496,3.69383402]
[1773025713359,49.32883354,83.585,83.506,0.62355222]
[1773025713560,7.32250062,83.584,83.506,0.62355222]
[1773025713862,11.86126194,83.58,83.506,0.62355222]
[1773025714061,11.86126194,83.56,83.508,0.62355222]
[1773025714259,7.32898216,83.582,83.511,0.62355222]
[1773025714559,11.86126194,83.58,83.512,0.62355222]
[1773025714852,11.96415539,83.583,83.512,0.62355222]
[1773025714853,11.86126194,83.57,83.512,0.62355222]
[1773025715257,0.6582733,83.561,83.476,0.62355222]
[1773025715440,0.6582733,83.569,83.478,3.69383402]
[1773025715642,0.6582733,83.549,83.48,0.14216157]
[1773025716254,0.6582733,83.539,83.479,41.9267121]
[1773025716464,11.96916742,83.548,83.479,41.9267121]
[1773025716465,0.6582733,83.529,83.479,11.9790606]
[1773025716661,0.6582733,83.519,83.451,41.94077961]
[1773025716973,0.6582733,83.509,83.451,41.94077961]
[1773025717143,0.6582733,83.509,83.452,0.28432314]
[1773025717459,0.6582733,83.509,83.452,0.62355222]
[1773025717962,0.6582733,83.509,83.452,0.76571379]
[1773025718142,0.6582733,83.509,83.413,1.19885389]
[1773025718143,0.6582733,83.507,83.454,0.62355222]
[1773025718550,0.6582733,83.507,83.454,0.76571379]
[1773025718751,0.6582733,83.507,83.455,0.62355222]
[1773025718950,3.69383402,83.545,83.453,11.9827927]
[1773025718951,0.6582733,83.548,83.459,0.62355222]
[1773025719150,0.6582733,83.539,83.459,0.62355222]
[1773025719352,0.6582733,83.539,83.46,4.82477569]
[1773025719558,0.6582733,83.539,83.47,0.62355222]
[1773025720060,4.82477569,83.601,83.47,0.62355222]
[1773025720061,0.6582733,83.553,83.486,3.69383402]
[1773025720357,11.96777771,83.558,83.491,0.62355222]
[1773025720559,29.91335833,83.575,83.492,0.62355222]
[1773025720770,0.6582733,83.591,83.506,5.44832791]
[1773025721070,0.6582733,83.591,83.494,0.28432314]
[1773025721071,0.6582733,83.591,83.522,4.82477569]
[1773025721241,0.6582733,83.591,83.513,3.69383402]
[1773025721242,0.6582733,83.591,83.53,0.62355222]
[1773025721441,0.6582733,83.584,83.53,0.62355222]
[1773025721958,0.6582733,83.579,83.53,0.62355222]
[1773025722263,0.6582733,83.577,83.531,11.97160335]
[1773025722447,0.6582733,83.577,83.531,12.59515557]
[1773025723059,0.6582733,83.577,83.532,0.62355222]
[1773025723565,0.6582733,83.599,83.533,0.62355222]
[1773025723742,0.6582733,83.599,83.531,41.90061174]
[1773025723743,0.6582733,83.63,83.541,0.62355222]
[1773025723942,0.6582733,83.63,83.534,4.82477569]
[1773025723943,0.6582733,83.63,83.56,0.62355222]
[1773025724156,0.6582733,83.627,83.562,0.62355222]
[1773025724352,0.6582733,83.627,83.566,0.62355222]
[1773025724555,0.6582733,83.609,83.553,0.62355222]
[1773025724860,41.85201128,83.628,83.551,3.69383402]
[1773025724861,0.6582733,83.599,83.551,3.69383402]
[1773025725043,0.6582733,83.589,83.529,0.62355222]
[1773025725462,0.28432314,83.612,83.529,0.62355222]
[1773025725463,0.6582733,83.579,83.529,0.62355222]
[1773025725980,0.6582733,83.569,83.511,0.62355222]
[1773025726143,0.6582733,83.569,83.485,59.89090072]
[1773025726144,11.96916742,83.548,83.486,0.62355222]
[1773025726346,11.96830116,83.555,83.488,0.62355222]
[1773025726548,0.6582733,83.559,83.493,0.62355222]
[1773025726751,11.96773498,83.558,83.493,0.62355222]
[1773025727048,0.6582733,83.569,83.493,0.62355222]
[1773025727267,11.86126194,83.57,83.493,0.62355222]
[1773025727268,0.6582733,83.567,83.493,0.62355222]
[1773025727445,0.6582733,83.549,83.493,0.62355222]
[1773025727864,0.6582733,83.559,83.493,0.62355222]
[1773025728367,0.6582733,83.559,83.49,3.69383402]
[1773025728368,0.6582733,83.559,83.498,0.62355222]
[1773025728549,0.6582733,83.559,83.501,0.62355222]
[1773025729265,0.6582733,83.559,83.47,53.92]
[1773025729266,0.6582733,83.539,83.494,42.54273204]
[1773025729456,0.6582733,83.549,83.495,0.62355222]
[1773025729765,0.6582733,83.558,83.497,3.69383402]
[1773025729950,0.6582733,83.558,83.499,0.62355222]
[1773025730144,0.6582733,83.558,83.494,41.91917982]
[1773025730145,11.86126194,83.53,83.494,11.97690852]
[1773025730366,0.6582733,83.528,83.489,11.97762579]
[1773025730578,0.6582733,83.528,83.489,41.92169027]
[1773025731078,11.86126194,83.54,83.49,0.62355222]
[1773025731079,0.6582733,83.539,83.49,0.62355222]
[1773025731868,0.6582733,83.539,83.472,0.62355222]
[1773025731869,0.6582733,83.519,83.472,0.62355222]
[1773025732376,0.6582733,83.517,83.473,11.97992165]
[1773025732569,0.6582733,83.517,83.473,41.92972577]
[1773025733272,0.6582733,83.509,83.473,11.97992165]
[1773025733474,0.6582733,83.509,83.449,59.91658457]
[1773025733475,0.6582733,83.509,83.463,11.981357]
[1773025733653,41.90663697,83.519,83.452,11.98293629]
[1773025733654,0.6582733,83.499,83.452,11.98293629]
[1773025734471,0.6582733,83.497,83.446,0.62355222]
[1773025735866,0.6582733,83.497,83.445,29.95961227]
[1773025736051,11.9761947,83.499,83.445,29.95961227]
[1773025736052,0.6582733,83.489,83.445,29.95961227]
[1773025736546,0.6582733,83.509,83.446,0.62355222]
[1773025736962,0.6582733,83.506,83.446,0.62355222]
[1773025737169,12.51953524,83.5,83.446,0.62355222]
[1773025737350,0.6582733,83.511,83.447,0.62355222]
[1773025737647,0.6582733,83.509,83.451,0.62355222]
[1773025738268,12.6331739,83.508,83.453,0.90787536]
[1773025738477,0.6582733,83.507,83.454,0.62355222]
[1773025740589,0.6582733,83.507,83.456,0.62355222]
[1773025740755,0.6582733,83.529,83.457,0.62355222]
[1773025740954,0.6582733,83.529,83.46,0.62355222]
[1773025741358,0.6582733,83.543,83.46,0.62355222]
[1773025741680,11.86126194,83.64,83.486,8.51860971]
[1773025741860,11.86126194,83.64,83.465,3.69383402]
[1773025741861,11.86126194,83.56,83.502,0.62355222]
[1773025742060,107.60530374,83.639,83.502,0.62355222]
[1773025742061,11.86126194,83.55,83.502,0.62355222]
[1773025742272,11.86126194,83.58,83.489,0.62355222]
[1773025742273,11.86126194,83.53,83.489,0.62355222]
[1773025742777,11.86126194,83.53,83.476,0.28432314]
[1773025742778,11.86126194,83.55,83.492,0.62355222]
[1773025742967,11.86126194,83.54,83.492,0.62355222]
[1773025743691,0.64828832,83.539,83.492,0.62355222]
[1773025744062,0.1,83.68,83.495,0.70602382]
[1773025744264,0.1,83.68,83.543,3.69383402]
[1773025744265,0.64828832,83.674,83.543,3.69383402]
[1773025744470,0.64828832,83.629,83.545,0.70602382]
[1773025744769,41.82850313,83.675,83.559,0.70602382]
[1773025744770,0.64828832,83.639,83.559,0.70602382]
[1773025744978,0.64828832,83.639,83.566,0.70602382]
[1773025745282,0.64828832,83.629,83.566,0.70602382]
[1773025745663,7.30828145,83.679,83.567,4.82477569]
[1773025745664,0.64828832,83.678,83.567,4.82477569]
[1773025745977,7.30828145,83.679,83.578,0.70602382]
[1773025745978,0.64828832,83.649,83.578,0.70602382]
[1773025746176,0.64828832,83.649,83.57,0.28432314]
[1773025746375,0.64828832,83.62,83.556,0.70602382]
[1773025746774,0.64828832,83.62,83.54,6.23337724]
[1773025746775,0.65552341,83.599,83.54,6.23337724]
[1773025746979,0.65552341,83.589,83.542,0.70387445]
[1773025747163,0.65552341,83.589,83.541,41.89559616]
[1773025747164,4.82477569,83.677,83.545,0.70387445]
[1773025747360,11.86126194,83.62,83.545,0.86681759]
[1773025747561,0.65552341,83.619,83.545,0.86681759]
[1773025747768,11.77399644,83.61,83.545,0.86681759]
[1773025748182,0.65552341,83.611,83.545,0.86681759]
[1773025748377,0.65552341,83.623,83.545,0.86681759]
[1773025748577,11.00211547,83.679,83.551,0.14216157]
[1773025748578,0.65552341,83.631,83.551,0.14216157]
[1773025748782,7.30828145,83.679,83.563,8.51860971]
[1773025748783,0.65552341,83.677,83.563,8.51860971]
[1773025748995,0.65552341,83.659,83.571,4.82477569]
[1773025749293,0.65552341,83.652,83.575,0.70387445]
[1773025749484,0.65552341,83.652,83.574,5.10909883]
[1773025749485,0.65552341,83.652,83.582,0.70387445]
[1773025749686,7.30828145,83.679,83.59,0.70387445]
[1773025749687,0.65552341,83.677,83.59,0.70387445]
[1773025749977,0.65552341,83.677,83.578,0.28432314]
[1773025749978,0.65552341,83.659,83.595,0.70387445]
[1773025750179,0.65552341,83.639,83.595,0.70387445]
[1773025750368,0.65552341,83.639,83.58,0.14216157]
[1773025750369,0.65552341,83.639,83.581,0.70387445]
[1773025750571,0.65552341,83.629,83.581,0.70387445]
[1773025750771,41.82700351,83.678,83.555,89.7612351]
[1773025750772,0.65552341,83.619,83.582,11.96429853]
[1773025751466,0.65552341,83.599,83.534,0.70387445]
[1773025751667,0.65552341,83.589,83.534,0.70387445]
[1773025751879,0.65552341,83.589,83.537,0.70387445]
[1773025752169,101.92374231,83.629,83.533,41.89960853]
[1773025752170,0.65552341,83.579,83.533,41.89960853]
[1773025752790,0.65552341,83.579,83.533,29.92829181]
[1773025752985,0.65552341,83.577,83.533,29.92829181]
[1773025753176,11.77399644,83.57,83.526,11.97231999]
[1773025753374,0.65552341,83.57,83.527,0.70387445]
[1773025753573,0.65552341,83.651,83.531,0.70387445]
[1773025753775,0.65552341,83.639,83.548,0.70387445]
[1773025753974,0.65552341,83.639,83.556,0.70387445]
[1773025754283,12.42951985,83.63,83.556,0.70387445]
[1773025754590,0.65552341,83.63,83.556,0.70387445]
[1773025754788,0.65552341,83.662,83.56,3.69383402]
[1773025754964,39.76305423,83.759,83.558,0.28432314]
[1773025754965,0.65552341,83.659,83.576,0.70387445]
[1773025755168,0.65552341,83.659,83.577,0.70387445]
[1773025755468,0.65552341,83.659,83.587,0.70387445]
[1773025755681,0.65552341,83.67,83.587,0.70387445]
[1773025755894,0.65552341,83.669,83.587,0.70387445]
[1773025756294,0.65552341,83.669,83.597,0.70387445]
[1773025757074,12.60752417,83.668,83.6,0.70387445]
[1773025757275,0.65552341,83.667,83.6,0.70387445]
[1773025757685,0.65552341,83.639,83.6,0.5]
[1773025758105,0.65552341,83.639,83.59,0.70387445]
[1773025758276,0.65552341,83.649,83.598,30.6088961]
[1773025758589,0.65552341,83.639,83.598,29.90502165]
[1773025759105,0.65552341,83.639,83.59,0.70387445]
[1773025759394,0.65552341,83.639,83.589,11.9632966]
[1773025759395,0.65552341,83.637,83.589,12.66717105]
[1773025759590,0.65552341,83.637,83.59,0.70387445]
[1773025759821,0.65552341,83.679,83.593,0.70387445]
[1773025759975,0.65552341,83.649,83.594,0.70387445]
[1773025761005,11.95485845,83.648,83.595,41.8685328]
[1773025761180,0.28432314,83.689,83.595,41.8685328]
[1773025761181,0.65552341,83.639,83.595,11.96243794]
[1773025761376,0.65552341,83.652,83.596,0.70387445]
[1773025761593,0.65552341,83.649,83.596,0.70387445]
[1773025763488,0.65552341,83.647,83.597,41.86753112]
[1773025764082,0.65552341,83.639,83.597,41.86753112]
[1773025764588,0.65552341,83.629,83.587,11.96358285]
[1773025765194,0.65552341,83.629,83.587,41.87253998]
[1773025765502,11.95771751,83.628,83.576,29.9127297]
[1773025765685,0.65552341,83.627,83.576,29.9127297]
[1773025766175,0.65552341,83.619,83.574,11.96544379]
[1773025766581,0.65552341,83.609,83.574,11.96544379]
[1773025766780,0.65552341,83.609,83.574,41.87905328]
[1773025767503,11.96057793,83.608,83.574,11.96544379]
[1773025767882,0.65552341,83.607,83.563,11.96701889]
[1773025768082,0.65552341,83.619,83.564,0.70387445]
[1773025768410,0.65552341,83.609,83.563,11.96701889]
[1773025768580,0.65552341,83.599,83.563,11.96701889]
[1773025768787,0.65552341,83.599,83.542,0.70387445]
[1773025768788,0.65552341,83.599,83.551,29.92155458]
[1773025768985,0.65552341,83.589,83.543,11.96988377]
[1773025769291,0.65552341,83.589,83.543,41.8945932]
[1773025769487,11.77399644,83.59,83.543,41.8945932]
[1773025769488,11.96343972,83.588,83.543,41.8945932]
[1773025769686,0.65552341,83.587,83.543,41.8945932]
[1773025770207,0.65552341,83.587,83.543,11.96988377]
[1773025770395,0.65552341,83.587,83.518,59.86689881]
[1773025770396,12.42951985,83.57,83.536,11.97075519]
[1773025770606,0.65552341,83.593,83.537,0.70387445]
[1773025770911,11.77399644,83.59,83.537,0.70387445]
[1773025771119,0.65552341,83.593,83.537,0.70387445]
[1773025771481,11.77399644,83.59,83.537,0.70387445]
[1773025771682,11.77399644,83.59,83.533,29.92829181]
[1773025771683,0.65552341,83.593,83.539,0.70387445]
[1773025772207,11.77399644,83.59,83.539,0.70387445]
[1773025772586,0.28432314,83.629,83.539,0.70387445]
[1773025772587,0.65552341,83.605,83.54,0.70387445]
[1773025772989,4.82477569,83.675,83.538,101.75010173]
[1773025772990,0.71940006,83.616,83.543,0.70092099]
[1773025773208,0.14216157,83.649,83.543,0.70092099]
[1773025773209,0.71940006,83.609,83.543,0.70092099]
[1773025773411,12.4933965,83.6,83.543,0.70092099]
[1773025773703,41.8585182,83.615,83.548,0.70092099]
[1773025773704,0.71940006,83.599,83.548,0.70092099]
[1773025774503,0.71940006,83.597,83.548,0.70092099]
[1773025775496,11.77399644,83.61,83.548,0.98524413]
[1773025775814,0.71940006,83.629,83.557,3.69383402]
[1773025776114,0.71940006,83.629,83.563,0.70092099]
[1773025776288,0.71940006,83.628,83.563,0.70092099]
[1773025776490,11.77399644,83.63,83.563,0.70092099]
[1773025776704,11.95698356,83.634,83.563,0.70092099]
[1773025776905,0.71940006,83.638,83.563,0.70092099]
[1773025777817,0.71940006,83.617,83.568,0.70092099]
[1773025778120,0.71940006,83.629,83.568,0.70092099]
[1773025778413,0.71940006,83.628,83.568,0.70092099]
[1773025778607,0.28432314,83.659,83.568,0.70092099]
[1773025778608,0.71940006,83.638,83.573,0.98524413]
[1773025778813,0.71940006,83.638,83.574,0.70092099]
[1773025779513,0.71940006,83.629,83.574,0.70092099]
[1773025779708,0.71940006,83.639,83.574,0.70092099]
[1773025780012,0.71940006,83.639,83.577,0.70092099]
[1773025780507,0.71940006,83.629,83.577,0.70092099]
[1773025781200,0.71940006,83.629,83.575,41.87855219]
[1773025781201,0.71940006,83.642,83.579,0.70092099]
[1773025781404,12.4933965,83.64,83.579,0.70092099]
[1773025781604,0.71940006,83.639,83.579,0.70092099]
[1773025781912,0.28432314,83.669,83.579,0.70092099]
[1773025781913,0.71940006,83.648,83.585,0.70092099]
[1773025782299,0.1,83.68,83.586,0.70092099]
[1773025782595,0.1,83.68,83.585,0.28432314]
[1773025782596,0.1,83.68,83.606,4.82477569]
[1773025782795,0.1,83.68,83.631,0.70092099]
[1773025783018,0.1,83.68,83.635,0.70092099]
[1773025783392,0.71940006,83.679,83.635,0.70092099]
[1773025783792,11.87399644,83.68,83.616,3.69383402]
[1773025783793,0.71940006,83.678,83.621,0.70092099]
[1773025784016,11.87399644,83.68,83.623,0.70092099]
[1773025784017,0.71940006,83.669,83.623,0.70092099]
[1773025784198,0.71940006,83.669,83.622,11.95857549]
[1773025784199,0.71940006,83.659,83.622,11.95857549]
[1773025784709,0.71940006,83.669,83.623,0.70092099]
[1773025785104,0.71940006,83.676,83.623,0.70092099]
[1773025785310,0.71940006,83.676,83.624,0.70092099]
[1773025785817,0.1,83.68,83.624,0.70092099]
[1773025786014,0.1,83.68,83.626,0.70092099]
[1773025786492,0.81940006,83.68,83.626,0.70092099]
[1773025787415,0.1,83.68,83.626,0.70092099]
[1773025787593,0.81940006,83.68,83.627,0.70092099]
[1773025788095,0.71940006,83.678,83.629,0.70092099]
[1773025788417,11.95042961,83.679,83.628,11.95771751]
[1773025788418,11.77399644,83.67,83.628,11.95771751]
[1773025788599,0.71940006,83.659,83.621,11.95862821]
[1773025788798,0.71940006,83.67,83.622,0.70092099]
[1773025789191,0.71940006,83.669,83.621,11.95862821]
[1773025789395,41.82650365,83.679,83.613,11.9598627]
[1773025789396,0.71940006,83.649,83.613,11.9598627]
[1773025790006,0.71940006,83.649,83.604,11.96106043]
[1773025790207,0.28432314,83.678,83.592,0.70092099]
[1773025790208,0.71940006,83.637,83.592,0.70092099]
[1773025792003,0.71940006,83.649,83.592,0.84308256]
[1773025792313,0.71940006,83.649,83.579,3.69383402]
[1773025792314,0.71940006,83.649,83.596,0.70092099]
[1773025792519,0.71940006,83.648,83.596,0.70092099]
[1773025794415,0.71940006,83.648,83.598,0.70092099]
[1773025795126,0.28432314,83.679,83.586,0.70092099]
[1773025795417,0.71940006,83.677,83.601,0.70092099]
[1773025795597,0.71940006,83.669,83.601,0.70092099]
[1773025795799,0.71940006,83.659,83.601,0.70092099]
[1773025796520,0.71940006,83.658,83.604,0.70092099]
[1773025797797,0.1,83.68,83.603,0.28432314]
[1773025797798,11.87399644,83.68,83.607,0.70092099]
[1773025797994,11.95042961,83.679,83.607,0.70092099]
[1773025798615,11.95042961,83.679,83.61,0.70092099]
[1773025798813,11.77399644,83.67,83.61,0.70092099]
[1773025799410,11.95042961,83.679,83.61,0.70092099]
[1773025799822,0.24996155,83.676,83.613,0.70092099]
[1773025800027,0.24996155,83.669,83.613,0.70092099]
[1773025800236,0.24996155,83.659,83.613,0.70092099]
[1773025800531,0.24996155,83.659,83.611,11.96014878]
[1773025800532,12.02395799,83.64,83.611,11.96014878]
[1773025800723,41.82750337,83.677,83.612,0.70092099]
[1773025800911,11.77399644,83.76,83.616,0.70092099]
[1773025800912,0.25186651,83.706,83.616,0.70092099]
[1773025801100,11.94286533,83.732,83.632,0.70092099]
[1773025801400,11.77399644,83.7,83.643,0.70092099]
[1773025801715,0.25375581,83.729,83.643,0.70092099]
[1773025801925,11.94343588,83.728,83.651,0.70092099]
[1773025802108,11.77399644,83.73,83.655,0.70092099]
[1773025803020,11.77399644,83.72,83.655,0.70092099]
[1773025803804,7.32324503,83.759,83.656,41.83800324]
[1773025803805,11.94614677,83.709,83.656,41.83800324]
[1773025804005,12.2064155,83.709,83.657,0.75410504]
[1773025804221,0.26026873,83.699,83.657,0.75410504]
[1773025804619,0.26026873,83.71,83.657,0.75410504]
[1773025804922,0.26207568,83.748,83.658,0.75410504]
[1773025805126,11.77399644,83.73,83.659,1.03842818]
[1773025805421,0.26207568,83.729,83.664,0.75410504]
[1773025805625,0.26207568,83.719,83.664,0.75410504]
[1773025806123,41.79154376,83.749,83.666,0.75410504]
[1773025806124,0.26384635,83.709,83.666,0.75410504]
[1773025806508,11.77399644,83.71,83.666,0.75410504]
[1773025806720,11.94486251,83.718,83.666,0.75410504]
[1773025807030,0.26559862,83.709,83.666,0.75410504]
[1773025807414,11.77399644,83.71,83.666,0.75410504]
[1773025807611,63.39603941,83.749,83.666,0.75410504]
[1773025807612,0.26559862,83.743,83.666,0.75410504]
[1773025807912,11.94329324,83.729,83.668,0.71518861]
[1773025808111,0.2690481,83.728,83.668,0.71518861]
[1773025808517,11.94329324,83.729,83.668,0.71518861]
[1773025809624,11.74649828,83.72,83.67,0.71518861]
[1773025810224,41.80152634,83.729,83.67,0.71518861]
[1773025810225,12.01891909,83.71,83.67,0.71518861]
[1773025810415,0.27242081,83.709,83.67,0.71518861]
[1773025811125,0.27242081,83.709,83.669,11.95185791]
[1773025811724,0.27541874,83.699,83.66,0.71518861]
[1773025812432,41.81201318,83.708,83.66,0.71518861]
[1773025812620,11.94628948,83.708,83.66,0.71518861]
[1773025813127,11.74649828,83.71,83.66,0.71518861]
[1773025813325,11.94614677,83.709,83.66,0.71518861]
[1773025813733,0.27801505,83.708,83.662,0.71518861]
[1773025814114,0.27801505,83.718,83.662,0.71518861]
[1773025814320,11.94500519,83.717,83.662,0.71518861]